Cogmind - Beta 16 @@@ ROGUE MODE // 2025.12.31 @ 02:48:17 Player: Zaros426 Result: Destroyed by 1Z-KZH(R) with Subdweller Beam Cannon Performance ------------- Evolutions (0) 0 Regions Visited (3) 600 Robots Destroyed (79) 395 Value Destroyed (1584) 1584 Prototype IDs (2) 40 Alien Tech Used (0) 0 Bonus (0) 0 TOTAL SCORE: 2619 Bonus ------- None Cogmind --------- Core Integrity 0/250 Matter 269/300 Energy 200/200 System Corruption 0% Temperature Cool (9) Movement Rolling (130) Ox2 Location -10/Subcaves Parts ------- > --- POWER (1) -------- Subdweller Power Source > --- PROPULSION (2) --- Subdweller Monowheel > --- UTILITY (2) ------ High-capacity Storage Unit Improved Terrain Scanner > --- WEAPON (2) ------- Subdweller Laser Subdweller Shrapnel Launcher > --- INVENTORY (20) --- Subdweller Power Source Subdweller Monowheel Improved Heat Sink Huge Storage Unit Light Humpback High-capacity Matter Pod (200) Subdweller Optics Transport Network Coupler Hacking Suite Riot Gun Particle Gun Particle Gun Battle Rifle Battle Rifle Subdweller Machine Gun Light Cannon Grenade Launcher Datajack Mining Laser Peak State ------------ > --- POWER ------------ Subdweller Power Source > --- PROPULSION ------- Subdweller Monowheel Subdweller Monowheel > --- UTILITY ---------- High-capacity Storage Unit Improved Terrain Scanner > --- WEAPON ----------- Subdweller Laser Battle Rifle > --- INVENTORY -------- Subdweller Power Source Improved Heat Sink Huge Storage Unit Light Humpback High-capacity Matter Pod Subdweller Optics Transport Network Coupler Hacking Suite Riot Gun Particle Gun Particle Gun Battle Rifle Light Cannon Grenade Launcher Subdweller Shrapnel Launcher Datajack Mining Laser [Rating: 17] Favorites ----------- Power Ion Engine Engine Ion Engine Propulsion Light Treads Treads Light Treads Wheel Wheel Utility High-capacity Storage Unit Device Seismic Detector Storage High-capacity Storage Unit Hackware Hacking Suite Protection Light Armor Plating Weapon Light Cannon Energy Gun Subdweller Laser Ballistic Gun Assault Rifle Ballistic Cannon Light Cannon Launcher Grenade Launcher Special Weapon Mining Laser Build | -11 -10 -10 -10 ------- Run | Yrd Mat Min Sub Slots Evolved . | . . . . Power . | . . . . Propulsion . | . . . . Utility . | . . . . Weapon . | . . . . Parts Attached 33 | 7 8 7 11 Power 5 | 1 1 1 2 Engine 5 | 1 1 1 2 Core . | . . . . Reactor . | . . . . Propulsion 7 | 2 . 2 3 Treads 2 | 2 . . . Leg . | . . . . Wheel 5 | . . 2 3 Hover . | . . . . Flight . | . . . . Utility 8 | 2 3 3 . Device 3 | 1 . 2 . Storage 3 | 1 2 . . Processor . | . . . . Hackware 1 | . 1 . . Protection 1 | . . 1 . Artifact . | . . . . Weapon 13 | 2 4 1 6 Energy Gun 3 | . 1 . 2 Energy Cannon . | . . . . Ballistic Gun 4 | 2 . . 2 Ballistic Cannon 3 | . 2 . 1 Launcher 2 | . 1 . 1 Special Weapon 1 | . . 1 . Impact Weapon . | . . . . Slashing Weapon . | . . . . Piercing Weapon . | . . . . Special Melee Weapon . | . . . . Unidentified Prototypes . | . . . . Parts Lost 10 | . 1 3 6 Power . | . . . . Propulsion 5 | . . 2 3 Utility 2 | . . 1 1 Weapon 3 | . 1 . 2 Highest Loss Streak 3 | . 1 3 2 To Critical Strikes . | . . . . Average Backups 11 | . 9 12 15 Power . | . . . . Propulsion . | . . . . Utility 5 | . 5 5 6 Weapon 4 | . 3 4 7 Tool/Special . | . . . . Unused Backups 18 | . 5 1 12 Power . | . . . . Propulsion . | . . . . Utility 11 | . 3 1 7 Weapon 5 | . 1 . 4 Tool/Special 2 | . 1 . 1 Average Slot Usage (%) 95 | . 98 95 88 Engine 14 | . 14 14 14 Treads 16 | . 28 14 . Wheel 8 | . . 13 19 Device 5 | . . 6 12 Storage 14 | . 14 14 14 Hackware 6 | . 13 . . Energy Gun 7 | . 3 . 21 Ballistic Gun 4 | . 8 . 2 Ballistic Cannon 10 | . 7 23 2 Launcher 3 | . 7 . . Special Weapon 1 | . . 3 . Peak Build Rating 17 | 7 11 10 17 Average Rating 10 | 5 9 8 12 On Entrance 6 | . 7 10 9 Avg Prop Armor Cover (%) 5 | . . . 5 Naked Turns . | . . . . Heaviest Build 54 | 14 51 52 54 Greatest Support 40 | 40 40 40 26 Greatest Overweight (x) 2 | . 1 2 2 Average Overweight (x) 1 | . . 1 2 Largest Inventory Capacity 20 | 8 20 20 20 Average Capacity 19 | 7 19 20 20 Most Carried 20 | 2 14 16 20 Average Carried 11 | . 9 12 15 Final Capacity 20 | 8 20 20 20 Final Carried 20 | 2 11 14 20 Class Distribution -------------------- 90% | Mutant 9% | Scavenger-Mutant Dominant Class ---------------- Mutant | -10/Materials Mutant | -10/Mines Mutant | -10/Subcaves Resources | -11 -10 -10 -10 ----------- Run | Yrd Mat Min Sub Matter Collected 1758 | 232 840 469 217 Remotely . | . . . . Salvage Created 1902 | 93 997 577 235 Parts 148 | 11 80 42 15 Haulers Intercepted 2 | . 2 . . Recyclers Shooed 2 | . 1 1 . Parts Field Recycled . | . . . . Retrieved Matter . | . . . . Parts Self-Destructed 4 | . . . 4 Prevented . | . . . . Parts Restored . | . . . . Kills | -11 -10 -10 -10 ------- Run | Yrd Mat Min Sub Combat Hostiles Destroyed 44 | . 21 17 6 Guns 9 | . 6 . 3 Cannons 18 | . 5 12 1 AOE 17 | . 10 5 2 Classes Destroyed 10 | 2 7 . 1 Worker 11 | . 9 2 . Builder 6 | . 6 . . Tunneler 4 | 2 1 1 . Hauler 2 | . 2 . . Recycler 5 | 1 1 3 . Operator 4 | . 4 . . Watcher 3 | . 3 . . Swarmer 11 | . 3 8 . Grunt 27 | . 18 9 . Subdweller 6 | . . . 6 Best Kill Streak 11 | 2 11 6 2 Combat Bots Only 5 | . 3 5 2 Max Kills in Single Turn 3 | 1 3 2 1 Gunslinging . | . . . . Exploded 2 | . 1 2 1 Melee . | . . . . Uniques/NPCs Destroyed . | . . . . Combat | -11 -10 -10 -10 -------- Run | Yrd Mat Min Sub Hostile Shots Fired 153 | . 63 57 33 Missed 39 | . 20 13 6 Hits 114 | . 43 44 27 Projectile 114 | . 43 44 27 Critical Strikes 4 | . 2 1 1 Damage Taken 1636 | . 546 446 644 Core 267 | . 96 58 113 Absorbed by Shields . | . . . . Core Remaining (%) 100 | 100 . . . Volleys Fired 198 | 11 94 61 32 Largest 2 | 2 2 2 2 Hottest 120 | 40 60 100 120 Shots Fired 318 | 22 139 103 54 Gun 161 | 22 99 . 40 Cannon 115 | . 20 86 9 Launcher 29 | . 20 4 5 Special 13 | . . 13 . Kinetic 211 | 22 79 86 24 Thermal 39 | . . 13 26 Explosive 28 | . 20 4 4 Electromagnetic 40 | . 40 . . Robot Hit Streak 25 | 3 7 12 25 Robot Miss Streak 6 | 6 4 5 2 Penetration Max . | . . . . Secondary Targets . | . . . . Shots Hit Robots 183 | 9 88 49 37 Core Hits 114 | 5 67 30 12 Critical Kills 2 | 1 1 . . Critical Parts Destroyed . | . . . . Critical Strikes 6 | 1 3 2 . Destroy 2 | 1 1 . . Blast 3 | . 1 2 . Corrupt 1 | . 1 . . Melee Attacks . | . . . . Impact . | . . . . Slashing . | . . . . Piercing . | . . . . Sneak Attacks . | . . . . Combat Hostiles . | . . . . Follow-up Attacks . | . . . . Damage Inflicted 4618 | 87 2491 1132 908 Guns 1529 | 87 945 . 497 Cannons 1201 | . 233 882 86 Explosions 1876 | . 1301 250 325 Melee . | . . . . Ramming 12 | . 12 . . Kinetic 2019 | 87 727 882 323 Thermal 605 | . 231 . 374 Explosive 1531 | . 1070 250 211 Electromagnetic 451 | . 451 . . Impact . | . . . . Slashing . | . . . . Piercing . | . . . . Highest Corruption . | . . . . Average Corruption . | . . . . Corruption Purged . | . . . . Corruption Blocked . | . . . . Overload Shots . | . . . . Overflow Damage 76 | . 67 2 7 Projectiles 3 | . 1 2 . Explosions 73 | . 66 . 7 Melee . | . . . . Knockbacks 13 | . 2 10 1 Impact . | . . . . Kinetic 12 | . 2 9 1 Secondary 1 | . . 1 . Self-Inflicted Damage 99 | . 76 23 . Shots 4 | . 3 1 . Rammed 3 | . 3 . . Targets Rammed 3 | . 3 . . Kicked . | . . . . Crushed . | . . . . Highest Temperature 239 | . 54 120 239 Average Temperature 32 | . 16 37 82 Received Heat Transfer 661 | . 240 90 331 Siege Activations . | . . . . Martial Activations . | . . . . Shielding Activations . | . . . . Robots Disrupted . | . . . . Combat Hostiles . | . . . . Robots Corrupted . | . . . . Combat Hostiles . | . . . . Parts Fried 2 | . 2 . . Impact Corruptions . | . . . . Robots Melted . | . . . . Combat Hostiles . | . . . . Parts Melted . | . . . . Heat Transferred 650 | . 200 . 450 Parts Sabotaged . | . . . . Parts Stolen . | . . . . Parts Stripped . | . . . . Power Chain Reactions 4 | . 4 . . Alert | -11 -10 -10 -10 ------- Run | Yrd Mat Min Sub Maximum Alert Level 1 | . 1 1 . Low Security (%) 70 | 100 58 85 . Level 1 29 | . 41 14 . Level 2 . | . . . . Level 3 . | . . . . Level 4 . | . . . . Level 5 . | . . . . High Security . | . . . . Max Security . | . . . . Peak Influence 347 | 10 347 241 . Initial 112 | . . 112 . Average 159 | . 171 155 . Influence Increases 1333 | 15 815 503 . Destroy 0b10 Robot/C 760 | . 420 340 . Destroy 0b10 Robot/NC 175 | 15 130 30 . Destroy Leader 160 | . 100 60 . Allied During Kill 4 | . . 4 . Successful Hack 24 | . 24 . . Select Force Hacks 30 | . 30 . . Disable Machine 15 | . . 15 . Destroy Structure 120 | . 96 24 . Lose Combat Pursuer 45 | . 15 30 . Influence Decreases 1333 | 15 526 717 75 Entered New Map 216 | . . 177 39 Time Decay 1047 | 15 516 490 26 Lost Part 50 | . 10 30 10 Lost Ally 20 | . . 20 . Squads Dispatched 5 | . 5 . . Investigation 3 | . 3 . . Extermination . | . . . . Reinforcement 2 | . 2 . . Assault . | . . . . Garrison . | . . . . Intercept . | . . . . Searches Triggered . | . . . . Construction Impeded . | . . . . Haulers Reinforced . | . . . . Active Scanning Responses . | . . . . Cargo Convoy Interrupts . | . . . . Stealth | -11 -10 -10 -10 --------- Run | Yrd Mat Min Sub Distress Signals 3 | . 3 . . Communications Jammed . | . . . . Distress Signals . | . . . . Times Spotted 63 | . 37 18 8 Peak Tracking Total 5 | . 5 3 2 Tactical Retreats 2 | . 1 1 . Traps | -11 -10 -10 -10 ------- Run | Yrd Mat Min Sub Traps Triggered 1 | . . . 1 Indirectly . | . . . . Trap Hack Attempts . | . . . . Triggered . | . . . . Disarmed . | . . . . Reprogrammed . | . . . . Reused . | . . . . Traps Extracted . | . . . . Installed . | . . . . Triggered . | . . . . Machines | -11 -10 -10 -10 ---------- Run | Yrd Mat Min Sub Machines Disabled 4 | . 3 1 . Max in Single Turn 3 | . 3 1 . Machines Repaired . | . . . . Machines Dismantled . | . . . . Machines Sabotaged . | . . . . Overloaded Fab Kills . | . . . . Hacking | -11 -10 -10 -10 --------- Run | Yrd Mat Min Sub Machines Accessed 9 | . 8 1 . Terminals 6 | . 6 . . Fabricators . | . . . . Repair Stations 1 | . 1 . . Recycling Units 1 | . 1 . . Scanalyzers . | . . . . Garrison Access . | . . . . Total Hacks 25 | . 24 1 . Successful 15 | . 14 1 . Failed 10 | . 10 . . Catastrophic 3 | . 3 . . Database Lockouts . | . . . . Manual 14 | . 14 . . Terminals 22 | . 22 . . Fabricators . | . . . . Repair Stations 1 | . 1 . . Recycling Units 1 | . 1 . . Scanalyzers . | . . . . Garrison Access . | . . . . Terminal Hacks 9 | . 8 1 . Record 2 | . 2 . . Robot Analysis 2 | . 2 . . Prototype ID Bank 1 | . 1 . . Open Door 1 | . . 1 . Branch Access Points 1 | . 1 . . Locate Traps 1 | . 1 . . Hauler Manifests 1 | . 1 . . Fabricator Hacks . | . . . . Repair Station Hacks . | . . . . Recycling Unit Hacks . | . . . . Scanalyzer . | . . . . Garrison Access Hacks . | . . . . Unauthorized Hacks 6 | . 6 . . Terminals 5 | . 5 . . Skim 5 | . 5 . . Fabricators . | . . . . Repair Stations . | . . . . Recycling Units 1 | . 1 . . Tunnel 1 | . 1 . . Scanalyzers . | . . . . Garrison Access . | . . . . Data Cores Recovered 2 | . 2 . . Used 1 | . 1 . . Hacking Detections 7 | . 7 . . Full Trace Events 2 | . 2 . . Feedback Events . | . . . . Feedback Blocked . | . . . . Robot Schematics Acquired . | . . . . Robots Built . | . . . . Authchips . | . . . . Time . | . . . . Total Robot Build Rating . | . . . . Part Schematics Acquired . | . . . . Parts Built . | . . . . Authchips . | . . . . Time . | . . . . Total Part Build Rating . | . . . . Part Studies Acquired . | . . . . Parts Repaired . | . . . . Time . | . . . . Parts Recycled . | . . . . Recycled Matter . | . . . . Retrieved Matter . | . . . . Retrieved Components . | . . . . Parts Scanalyzed . | . . . . Part Schematics Acquired . | . . . . Parts Damaged . | . . . . Bothacking | -11 -10 -10 -10 ------------ Run | Yrd Mat Min Sub Used RIF Installer . | . . . . Robots Hacked . | . . . . Non-combat . | . . . . Combat . | . . . . Robot Hacks Applied . | . . . . Relay Couplers Released . | . . . . Fabnet Peak Effective % . | . . . . Robots Rewired . | . . . . Allies Hacked . | . . . . Hacks Repelled . | . . . . Allies | -11 -10 -10 -10 -------- Run | Yrd Mat Min Sub Total Allies 1 | . . 1 . Largest Group 1 | . . 1 . Highest-Rated Group 31 | . . 31 . Highest-Rated Ally 31 | . . 31 . Total Orders . | . . . . Ally Attacks 5 | . . 5 . Total Damage 63 | . . 63 . Kills . | . . . . Allies Corrupted . | . . . . Allies Melted . | . . . . Intel | -11 -10 -10 -10 ------- Run | Yrd Mat Min Sub Active Infowar (turns) 1761 | 67 55 633 1006 Terrain 593 | . . 465 128 Seismic 1168 | 67 55 168 878 Robot Analysis Total 2 | . 2 . . Derelict Logs Recovered 2 | . . 1 1 Drone Launches . | . . . . Drone Recoveries . | . . . . Exploration | -11 -10 -10 -10 ------------- Run | Yrd Mat Min Sub Turns Passed 4478 | 123 1924 1295 1136 Spaces Moved 1868 | 53 702 678 435 Core 4 | 4 . . . Treads 990 | 49 702 239 . Legs . | . . . . Wheels 874 | . . 439 435 Hover . | . . . . Flight . | . . . . Fastest Speed 50 | 50 160 110 110 Average Speed 177 | 151 231 155 125 Slowest Speed 320 | 160 240 320 130 Overloaded Moves . | . . . . Propulsion Burnouts . | . . . . Robots Hopped . | . . . . Potential Cave-ins 2 | . . 2 . Cave-ins Triggered . | . . . . Exploration Rate (%) 59 | 7 99 99 33 Regions Visited 3 Branch Regions 2 Pre-discovered Areas 2 | . 1 . 1 Known Exits Taken 1 | . 1 . . Unknown Exits Taken 2 | 1 . 1 . Scrap Searched 3 | . . 1 2 Spaces Dug 8 | . 7 1 . Terrain Destroyed 157 | . 90 34 33 Melee . | . . . . Projectile 9 | . . 9 . AOE 148 | . 90 25 33 Terrain Rammed . | . . . . Walls Destroyed . | . . . . Machines Disabled . | . . . . Actions | -11 -10 -10 -10 --------- Run | Yrd Mat Min Sub Total 2684 | 72 858 785 969 Wait 518 | . 19 26 473 Move 1865 | 52 701 677 435 Hop . | . . . . Pick Up 38 | 2 18 7 11 Fast Attach 11 | 7 1 1 2 Attach 10 | . 2 4 4 Detach 1 | . . 1 . Swap 22 | . 9 5 8 Drop 18 | . 11 3 4 Fire 198 | 11 94 61 32 Melee . | . . . . Ram . | . . . . Kick . | . . . . Crush 3 | . 3 . . Escape Stasis . | . . . . Rewire . | . . . . Trap . | . . . . Miscellaneous . | . . . . Route ------- -11/Scrapyard -10/Materials (discovered 6 exits: [*Mat x3] / *Min x2 / [*Sub]) -10/Mines (discovered 4 exits: [*Mat x2] / [*Exi] / [*Sub]) -10/Subcaves History --------- Turn | Location | Event 66 | -11/Scrapyard | Discovered new exit (range 14) 124 | -11/Scrapyard | Entered Materials 201 | -10/Materials | Discovered new exit (range 16) 312 | -10/Materials | Build established: Mutant 792 | -10/Materials | Discovered new exit (range 15) 1067 | -10/Materials | Discovered new exit (range 5) 1511 | -10/Materials | Discovered new exit (range 8) 1679 | -10/Materials | Discovered new exit (range 16) 1744 | -10/Materials | Discovered new exit (range 10) 1761 | -10/Materials | Identified exit to Mines 2048 | -10/Materials | Entered Mines 2048 | -10/Mines | Discovered new exit (range 8) 2067 | -10/Mines | Met a Derelict who couldn't figure out how to use a Trap Extractor 2095 | -10/Mines | Discovered new exit (range 9) 2581 | -10/Mines | Received a Rocket Launcher from a helpful Derelict 2674 | -10/Mines | Escorted by a lone wolf Derelict 2683 | -10/Mines | Learned 8 Materials zone layouts 2745 | -10/Mines | Core integrity fell below 50% 2791 | -10/Mines | Lost 3 parts (2n1u) 3034 | -10/Mines | Excavation squad dispatched 3034 | -10/Mines | A large section of the Mines collapsed 3128 | -10/Mines | Deemed a non-threat by the Exiles lab entrance 3128 | -10/Mines | Discovered new exit (range 5) 3320 | -10/Mines | Discovered new exit (range 6) 3343 | -10/Mines | Entered Subcaves 3348 | -10/Subcaves | Build established: Scavenger-Mutant 3348 | -10/Subcaves | Learned location of Zion (-7) 3392 | -10/Subcaves | Shifting Twisted Machinery released Sub. Laser 3458 | -10/Subcaves | Shifting Twisted Machinery released Riot Gun 3463 | -10/Subcaves | Shifting Twisted Machinery released Sub. Laser 3470 | -10/Subcaves | Shifting Twisted Machinery released Mak. Flight Unit 3656 | -10/Subcaves | Build established: Mutant 4150 | -10/Subcaves | Shifting Twisted Machinery released Lgt. Humpback 4195 | -10/Subcaves | Core integrity fell below 20% 4329 | -10/Subcaves | Shifting Twisted Machinery released Battle Rifle 4479 | -10/Subcaves | Destroyed by 1Z-KZH(R) with Subdweller Beam Cannon Last Messages --------------- 04245_ Dropped Lgt. Cannon. 04261_ Searching scrap... 04261_ Found Sub. Shrapnel Launcher. 04261_ Found 49 Matter. 04262_ Acquired 30 matter. 04262_ Searching scrap... 04262_ Found Battle Rifle. 04262_ Found 30 Matter. 04266_ Acquired Sub. Shrapnel Launcher. 04268_ Acquired Battle Rifle. Battle Rifle falls loose from the Twisted Machinery. 04348_ Acquired Battle Rifle. 04349_ Dropped Assault Rifle. 04434_ ZH-3AX(R) destroyed. 04446_ Subatomizers dissect the Sub. Monowheel. 04448_ Acquired Sub. Machine Gun. 04451_ Acquired Sub. Monowheel. 04452_ Acquired 47 matter. 04476_ Sub. Monowheel destroyed. 04478_ Destroyed Sub. Monowheel. Map ----- +----------------------------------------------------+ | | | | | | | | | | | ?????????????????????????????????????????????????? | | ?????????????????????????????????????????????????? | | ?????????????????????????????????????????????????? | | ?????????????????????????????????????????????????? | | ?????????????????????????????????????????????????? | | ?????????????????????????????????????????????????? | | ?????????????????????????????????????????????????? | | ?????????#######?????????????????????????????????? | | ?????????#" "#?#???????????????????????????????? | | ?????????# ##%%#?????????????????????????????????? | | ?????????# ####?????????????????????????????????? | | ?????????## "###?????????????????????????????????? | | ?????????## ## #?????????????????????????????????? | | ?????????#" #?????????????????????????????????? | | ????????## ##???????###???#########??????????? | | ???????## #### ###???### ####;;;;; ??????????? | | ???????# ## ##??# ;; #?????????? | | ???????# ##?? R #?????????? | | ???????## & #??# #?????????? | | ????????# ## ##?# R ;;;" ??????????? | | ????????## ## #??#@ ; " ??????????? | | ??####???# ##?# ; ;;#?????????????? | | ?## #???# #?# #########?????????????? | | ?# ###?# ## #?# #????#???????????????? | | ?# #?# ##? ## #?????#??????????????? | | #?# ### ####### #?#??????????????????? | | ### #?## #?#??????????????????? | | ""#?## ##????????????????????? | | "" " ######## ##????????????????????? | | ## """##?### #????????????????????? | | # #######?# ##???????#????????????? | | #??##"### ##?????#???????????????? | | # # ##### """ ##??##??????????????????? | | ### ##?# """ ##?????????#?????????????? | | ### ###### !######?????????#?????????????? | | ## #### #?## & #### #??#????????????????????? | | ## ### ##?## !" [ #???#???????????????????? | | ### ## ##?# "" ##??????????????????????? | | ## ### """##?????????????????????? | | ## """##??#??#???#??????????? | | " """#####????#???????????? | | ## " ##?????????????????? | | #### #????#????????????? | | ##?###### #?????????????????? | | #???##### ##????????????????? | +----------------------------------------------------+ Best States ------------- Heat Dissipation 25 Energy Generation 15 Energy Capacity 250 Matter Stores 300 Matter Capacity 300 Sight Range 16 Terrain Scan Range 16 Terrain Scan Density 10 Armor Coverage 150 Evasion (%) 40 Recoil Reduction 2 Offensive Hacking 10 Item Schematics ----------------- None Robot Schematics ------------------ None Fabricated ------------ Nothing Repaired ---------- Nothing Studied --------- None Alien Tech Used ----------------- None Achievements -------------- None Challenges ------------ None Game ------ Seed JunkDisruptionClaw Manual? 0 Play Time 00:24:06 Cumulative 64.5 hours Start 2025.12.31 @ 02:28:48 End 2025.12.31 @ 02:48:17 Sessions 1 Manual Loads 0 Difficulty Rogue Special Mode None Game No. 28 Rogue 28 Adventurer 0 Explorer 0 Win Type - Total 0 Types 0/0/0/0/0/0/0/0/0/0 Lore% 50 Gallery% 55 Achievement% 50 Wizard Run 0 Options --------- Layout 0 ASCII 0 Keyboard 0 Movement Mouse Keybinds 0 Fullscreen 1 Font 24/Smallcaps Map View 183x50 Zoom Use 0% Tactical HUD 1 Map Filters NONE Filters NONE Steam 1 RUN: b75ab662-5160-448a-986f-8ebc5048fde2